Cogmind - Beta 11 X8 @@@ ROGUE MODE // 2021.12.06 @ 16:01:48 Player: btmk16 Result: Destroyed by G-50 Soldier with Heavy Laser Performance ------------- Evolutions (3) 1500 Regions Visited (10) 2000 Robots Destroyed (111) 555 Value Destroyed (3869) 3869 Prototype IDs (29) 580 Alien Tech Used (0) 0 Bonus (1567) 1567 TOTAL SCORE: 10071 Bonus ------- High Alert Combat Kills 459 Follower Combat Kills 123 Entered Garrisons 200 Used RIF Installer 500 Aligned with FarCom 300 Friendly Fire -15 Cogmind --------- Core Integrity 0/700 Matter 7/400 Energy 99/100 System Corruption 16% Temperature Cool (9) Movement Core (2400) Ox47 Location -7/Factory Parts ------- > --- POWER (1) -------- (None) > --- PROPULSION (4) --- (None) > --- UTILITY (4) ------ Cargo Storage Unit Medium Matter Pod > --- WEAPON (4) ------- (None) > --- INVENTORY (30) --- Improved Cesium-ion Thruster Advanced Heat Sink Structural Scanner Signal Interpreter Improved Terrain Scanner Transport Network Coupler Targeting Computer Recoil Stabilizer Matter Filter Improved Medium Armor Plating Improved Medium Armor Plating Relay Coupler [NC] (30) Relay Coupler [NC] (26) Relay Coupler [Swarmer] (38) Relay Coupler [Swarmer] (37) Relay Coupler [Grunt] (28) Relay Coupler [Grunt] (26) Relay Coupler [Grunt] (30) Relay Coupler [Sentry] (20) Relay Coupler [Hunter] (19) High-powered Tractor Beam Guided Plasma Cannon Mini Grenade Launcher Improved Datajack Peak State ------------ > --- POWER ------------ Light Angular Momentum Engine > --- PROPULSION ------- Medium Treads Wheel Armored Huge Wheel > --- UTILITY ---------- Improved Cooling System Cargo Storage Unit Improved Light Armor Plating > --- WEAPON ----------- Beam Rifle Guided Plasma Cannon Enhanced Autogun Advanced Assault Cannon > --- INVENTORY -------- Light Nuclear Core Micro Nuclear Core Wheel Wheel Wheel Improved Cesium-ion Thruster Advanced Heat Sink Medium Matter Pod Medium Matter Pod Structural Scanner Visual Processing Unit Signal Interpreter Improved Terrain Scanner Improved Terrain Scanner Transport Network Coupler Targeting Computer Targeting Computer Targeting Computer Recoil Stabilizer Matter Filter Improved Light Armor Plating Relay Coupler [NC] Relay Coupler [Grunt] High-powered Tractor Beam Shotgun Mini Grenade Launcher Mini Grenade Launcher Improved Datajack Mining Claw [Rating: 51] Favorites ----------- Power Heavy Ion Engine Engine Heavy Ion Engine Power Core Micro Nuclear Core Propulsion Wheel Treads Advanced Treads Leg Aluminum Leg Wheel Wheel Utility Cargo Storage Unit Device Improved Cooling System Storage Cargo Storage Unit Protection Hardened Medium Armor Plating Weapon High-powered Shotgun Energy Gun Beam Rifle Energy Cannon Guided Plasma Cannon Ballistic Gun High-powered Shotgun Ballistic Cannon Advanced Assault Cannon Launcher Mini Grenade Launcher Slashing Weapon Mining Claw Build | -11 -10 -10 -9 -9 -9 -8 -8 -7 -7 -7 ------- Run | Scr Mat Min Mat Min Exi Min Mat Fac Gar Fac Slots Evolved 6 | . . . 2 . . . 2 2 . . Power . | . . . . . . . . . . . Propulsion 2 | . . . 1 . . . 1 . . . Utility 2 | . . . . . . . 1 1 . . Weapon 2 | . . . 1 . . . . 1 . . Parts Attached 89 | . 9 2 10 4 . 2 11 21 27 3 Power 8 | . 1 1 1 . . . 1 1 2 1 Engine 6 | . 1 1 1 . . . 1 1 1 . Core 2 | . . . . . . . . . 1 1 Reactor . | . . . . . . . . . . . Propulsion 24 | . 4 1 4 2 . . 3 3 7 . Treads 6 | . . . . . . . 2 2 2 . Leg 1 | . . . . . . . . . 1 . Wheel 17 | . 4 1 4 2 . . 1 1 4 . Hover . | . . . . . . . . . . . Flight . | . . . . . . . . . . . Utility 13 | . 1 . . . . . 2 5 4 1 Device 4 | . . . . . . . 1 2 1 . Storage 2 | . 1 . . . . . . . . 1 Processor . | . . . . . . . . . . . Hackware . | . . . . . . . . . . . Protection 7 | . . . . . . . 1 3 3 . Artifact . | . . . . . . . . . . . Weapon 44 | . 3 . 5 2 . 2 5 12 14 1 Energy Gun 9 | . . . . . . 1 2 2 4 . Energy Cannon 3 | . . . . . . 1 . . 2 . Ballistic Gun 22 | . 3 . 5 1 . . 3 8 2 . Ballistic Cannon 2 | . . . . . . . . 1 . 1 Launcher 4 | . . . . 1 . . . . 3 . Special Weapon . | . . . . . . . . . . . Impact Weapon . | . . . . . . . . . . . Slashing Weapon 4 | . . . . . . . . 1 3 . Piercing Weapon . | . . . . . . . . . . . Special Melee Weapon . | . . . . . . . . . . . Unidentified Prototypes 3 | . . . 1 . . . . 2 . . Parts Lost 36 | . 2 . 3 . . . 4 3 21 3 Power 5 | . . . . . . . 1 1 3 . Propulsion 13 | . 1 . 3 . . . 1 . 8 . Utility 4 | . . . . . . . . . 3 1 Weapon 14 | . 1 . . . . . 2 2 7 2 Highest Loss Streak 9 | . 1 . 2 . . . 3 1 9 3 Average Slot Usage (%) 68 | . 84 85 82 88 88 88 85 85 47 35 Engine 6 | . 14 14 11 11 11 11 8 7 2 . Treads 4 | . . . . . . . 14 15 4 . Wheel 14 | . 27 28 28 33 33 33 21 9 4 . Device 4 | . . . . . . . 2 7 7 6 Storage 9 | . 14 14 11 11 11 11 9 7 7 12 Protection 2 | . . . . . . . 6 6 2 . Energy Gun 2 | . . . . . . 2 5 2 3 . Ballistic Gun 17 | . 27 28 32 33 33 29 18 25 4 . Launcher 2 | . . . . . . . . . 4 6 Naked Turns . | . . . . . . . . . . . Heaviest Build 177 | 13 148 147 157 156 156 156 162 174 177 158 Greatest Support 38 | 20 26 20 36 36 36 36 36 28 38 3 Greatest Overweight (x) 52 | . 9 7 15 4 4 4 6 6 47 52 Average Overweight (x) 6 | . 5 7 4 4 4 4 5 5 10 49 Largest Inventory Capacity 30 | . 30 30 30 30 30 30 30 30 30 30 Average Capacity 29 | . 29 30 30 30 30 30 30 30 30 30 Most Carried 30 | . 30 30 30 30 30 30 30 30 30 26 Average Carried 27 | . 22 29 29 30 30 30 29 29 27 24 Final Capacity 30 | 8 30 30 30 30 30 30 30 30 30 30 Final Carried 30 | 6 27 30 30 30 30 30 30 29 26 24 Class Distribution -------------------- 44% | Hauler-Mutant 30% | Hauler-Skirmisher 14% | Hauler-Gunner 9% | Bothacker-Mutant Dominant Class ---------------- Hauler-Mutant | -10/Materials Hauler-Mutant | -10/Mines Hauler-Gunner | -9/Materials Hauler-Gunner | -9/Mines Hauler-Gunner | -9/Exiles Hauler-Skirmisher | -8/Mines Hauler-Skirmisher | -8/Materials Hauler-Skirmisher | -7/Factory Hauler-Mutant | -7/Garrison Bothacker-Mutant | -7/Factory Resources | -11 -10 -10 -9 -9 -9 -8 -8 -7 -7 -7 ----------- Run | Scr Mat Min Mat Min Exi Min Mat Fac Gar Fac Matter Collected 2981 | 180 283 127 335 149 . 118 287 778 624 100 Remotely 166 | . . . . . . . . 166 . . Salvage Created 3395 | . 517 129 411 186 . 102 435 757 858 . Parts 227 | . 49 14 38 12 . 7 26 46 35 . Haulers Intercepted 3 | . 1 . 1 . . . . 1 . . Recyclers Shooed 6 | . . . 2 2 . . . 2 . . Parts Field Recycled . | . . . . . . . . . . . Retrieved Matter . | . . . . . . . . . . . Parts Self-Destructed . | . . . . . . . . . . . Prevented . | . . . . . . . . . . . Kills | -11 -10 -10 -9 -9 -9 -8 -8 -7 -7 -7 ------- Run | Scr Mat Min Mat Min Exi Min Mat Fac Gar Fac Combat Hostiles Destroyed 82 | . 10 1 10 4 . 4 9 15 29 . Guns 67 | . 10 1 10 2 . 4 9 14 17 . Cannons 5 | . . . . . . . . 1 4 . AOE 10 | . . . . 2 . . . . 8 . Classes Destroyed 15 | . 7 1 3 . . . . 2 2 . Worker 10 | . 4 2 1 . . . 1 2 . . Builder 4 | . 1 . . . . . . 3 . . Tunneler 4 | . . 2 . 1 . . 1 . . . Hauler 3 | . 1 . 1 . . . . 1 . . Recycler 4 | . . . 1 2 . . . 1 . . Operator 1 | . 1 . . . . . . . . . Watcher 3 | . 1 . 1 . . . . 1 . . Swarmer 22 | . 3 . 3 4 . 2 . 6 4 . Cutter 3 | . . . . . . . . . 3 . Grunt 42 | . 7 1 5 . . 2 6 4 17 . Brawler 1 | . . . . . . . . 1 . . Duelist 2 | . . . 1 . . . . 1 . . Protector 1 | . . . . . . . . . 1 . Sentry 9 | . . . 1 . . . 3 1 4 . Programmer 2 | . . . . . . . . 2 . . Best Kill Streak 8 | . 3 2 8 3 . 2 3 5 5 . Combat Bots Only 5 | . 3 1 5 3 . 2 3 4 5 . Max Kills in Single Turn 2 | . 2 1 2 2 . 1 1 2 2 . Gunslinging 1 | . . . 1 . . . . 1 . . Exploded 2 | . . . . 2 . . . . 2 . Melee . | . . . . . . . . . . . Uniques/NPCs Destroyed . | . . . . . . . . . . . Combat | -11 -10 -10 -9 -9 -9 -8 -8 -7 -7 -7 -------- Run | Scr Mat Min Mat Min Exi Min Mat Fac Gar Fac Damage Taken 5689 | . 377 95 430 51 . 122 528 1040 2473 573 Core 863 | . 16 40 42 . . 18 37 80 351 279 Absorbed by Shields . | . . . . . . . . . . . Core Remaining (%) 88 | 100 . 77 . . . 85 93 . . . Volleys Fired 258 | . 61 11 21 9 . 11 27 43 75 . Largest 4 | . 2 2 3 3 . 3 3 4 4 . Hottest 194 | . 40 40 75 70 . 120 117 152 194 . Shots Fired 699 | . 118 22 62 25 . 31 70 166 205 . Gun 615 | . 118 22 62 24 . 30 70 149 140 . Cannon 59 | . . . . . . 1 . 17 41 . Launcher 25 | . . . . 1 . . . . 24 . Special . | . . . . . . . . . . . Kinetic 555 | . 118 22 62 24 . 27 53 147 102 . Thermal 119 | . . . . . . 4 17 19 79 . Explosive 25 | . . . . 1 . . . . 24 . Electromagnetic . | . . . . . . . . . . . Robot Hit Streak 16 | . 10 6 5 3 . 7 10 10 16 . Robot Miss Streak 9 | . 4 2 9 7 . 6 6 7 4 . Penetration Max . | . . . . . . . . . . . Secondary Targets 11 | . 4 . 2 . . . 1 3 1 . Max Gunslinging Chain 1 | . 1 . 1 . . . 1 1 1 . Shots Hit Robots 393 | . 69 12 34 11 . 16 52 96 103 . Core Hits 232 | . 33 5 22 9 . 9 32 44 78 . Critical Kills 3 | . 1 . . . . 1 1 . . . Critical Parts Destroyed 4 | . . . . . . . 2 1 1 . Critical Strikes 11 | . 1 . . . . 1 3 1 5 . Burn 3 | . . . . . . . . . 3 . Destroy 7 | . 1 . . . . 1 3 1 1 . Blast 1 | . . . . . . . . . 1 . Melee Attacks 8 | . . . . . . . . 6 2 . Impact . | . . . . . . . . . . . Slashing 8 | . . . . . . . . 6 2 . Piercing . | . . . . . . . . . . . Sneak Attacks . | . . . . . . . . . . . Combat Hostiles . | . . . . . . . . . . . Follow-up Attacks . | . . . . . . . . . . . Damage Inflicted 8157 | . 749 172 647 310 . 312 867 1748 3352 . Guns 5759 | . 749 172 647 143 . 281 867 1551 1349 . Cannons 1008 | . . . . . . 31 . 197 780 . Explosions 1381 | . . . . 159 . . . . 1222 . Melee . | . . . . . . . . . . . Ramming 9 | . . . . 8 . . . . 1 . Kinetic 5378 | . 749 172 647 143 . 252 761 1530 1124 . Thermal 1389 | . . . . . . 60 106 218 1005 . Explosive 1381 | . . . . 159 . . . . 1222 . Electromagnetic . | . . . . . . . . . . . Impact . | . . . . . . . . . . . Slashing . | . . . . . . . . . . . Piercing . | . . . . . . . . . . . Highest Corruption 16 | . . . . . . . . 3 16 16 Average Corruption 11 | . . . . . . . . 1 11 16 Corruption Purged . | . . . . . . . . . . . Effects 108 | . . . . . . . . 3 79 26 Message Errors 25 | . . . . . . . . 2 19 4 Matter Fused 23 | . . . . . . . . . 14 9 Heat Flow Errors 14 | . . . . . . . . . 10 4 Energy Discharges 14 | . . . . . . . . . 10 4 Parts Rejected 1 | . . . . . . . . . . 1 Data Loss (minor) 19 | . . . . . . . . 1 18 . Data Loss (major) 9 | . . . . . . . . . 5 4 Weapon Failures 3 | . . . . . . . . . 3 . Overload Shots . | . . . . . . . . . . . Overflow Damage 66 | . . . . 28 . . . . 38 . Projectiles 29 | . . . . . . . . . 29 . Explosions 37 | . . . . 28 . . . . 9 . Melee . | . . . . . . . . . . . Knockbacks 4 | . . . . . . . . 3 1 . Impact . | . . . . . . . . . . . Kinetic 4 | . . . . . . . . 3 1 . Secondary . | . . . . . . . . . . . Self-Inflicted Damage 154 | . . . . 4 . . . . 150 . Shots 7 | . . . . . . . . . 7 . Rammed 2 | . . . . 1 . . . . 1 . Targets Rammed 2 | . . . . 1 . . . . 1 . Kicked . | . . . . . . . . . . . Crushed . | . . . . . . . . . . . Highest Temperature 372 | . 22 2 65 3 . 131 372 60 243 152 Average Temperature 59 | . 8 2 18 2 . 41 117 21 67 61 Received Heat Transfer 1686 | . 183 51 84 . . 36 297 165 501 369 Effects 2 | . . . . . . . 2 . . . Energy Bleed 1 | . . . . . . . 1 . . . Short Circuit 1 | . . . . . . . 1 . . . Siege Activations . | . . . . . . . . . . . Robots Corrupted . | . . . . . . . . . . . Combat Hostiles . | . . . . . . . . . . . Parts Fried . | . . . . . . . . . . . Impact Corruptions . | . . . . . . . . . . . Robots Melted . | . . . . . . . . . . . Combat Hostiles . | . . . . . . . . . . . Parts Melted 2 | . . . . . . . . 1 1 . Heat Transferred 3167 | . . . . . . 154 259 518 2236 . Parts Sabotaged . | . . . . . . . . . . . Parts Stolen . | . . . . . . . . . . . Parts Stripped . | . . . . . . . . . . . Power Chain Reactions . | . . . . . . . . . . . Missiles Intercepted . | . . . . . . . . . . . Alert | -11 -10 -10 -9 -9 -9 -8 -8 -7 -7 -7 ------- Run | Scr Mat Min Mat Min Exi Min Mat Fac Gar Fac Peak Influence 1541 | . 157 92 281 348 . 133 307 357 1541 808 Initial 808 | . . 37 35 109 . . 51 59 259 808 Average 549 | . 66 73 123 224 . 45 131 76 1183 723 Maximum Alert Level 4 | . . . 1 1 . . 1 1 4 3 Low Security (%) 47 | . 100 100 71 29 . 100 92 92 . . Level 1 9 | . . . 28 70 . . 7 7 4 . Level 2 7 | . . . . . . . . . 9 42 Level 3 10 | . . . . . . . . . 15 57 Level 4 25 | . . . . . . . . . 70 . Level 5 . | . . . . . . . . . . . High Security . | . . . . . . . . . . . Max Security . | . . . . . . . . . . . Squads Dispatched 12 | . 3 . . . . . . 8 . 1 Investigation 3 | . 1 . . . . . . 2 . . Extermination 2 | . . . . . . . . 2 . . Reinforcement 3 | . 2 . . . . . . 1 . . Assault 1 | . . . . . . . . . . 1 Garrison 3 | . . . . . . . . 3 . . Intercept . | . . . . . . . . . . . Construction Impeded . | . . . . . . . . . . . Haulers Reinforced 1 | . . . . . . . . 1 . . Active Scanning Responses . | . . . . . . . . . . . Cargo Convoy Interrupts 1 | . . . . . . . . 1 . . Stealth | -11 -10 -10 -9 -9 -9 -8 -8 -7 -7 -7 --------- Run | Scr Mat Min Mat Min Exi Min Mat Fac Gar Fac Distress Signals 4 | . . . 1 . . . 2 1 . . Communications Jammed . | . . . . . . . . . . . Distress Signals . | . . . . . . . . . . . Times Spotted 117 | . 17 2 12 8 . 7 14 21 31 5 Peak Tracking Total 5 | . 3 2 5 3 . 4 4 4 5 5 Tactical Retreats 4 | . . 1 . . . . 1 . 2 . Traps | -11 -10 -10 -9 -9 -9 -8 -8 -7 -7 -7 ------- Run | Scr Mat Min Mat Min Exi Min Mat Fac Gar Fac Traps Triggered 14 | . 1 . . . . . . 1 12 . Indirectly . | . . . . . . . . . . . Trap Hack Attempts . | . . . . . . . . . . . Triggered . | . . . . . . . . . . . Disarmed . | . . . . . . . . . . . Reprogrammed . | . . . . . . . . . . . Reused . | . . . . . . . . . . . Traps Extracted . | . . . . . . . . . . . Installed . | . . . . . . . . . . . Triggered . | . . . . . . . . . . . Machines | -11 -10 -10 -9 -9 -9 -8 -8 -7 -7 -7 ---------- Run | Scr Mat Min Mat Min Exi Min Mat Fac Gar Fac Machines Disabled 10 | . . . . 2 . . 2 2 4 . Max in Single Turn 2 | . . . . 2 . . 1 1 1 . Garrison Relay 3 | . . . . . . . . . 3 . Machines Sabotaged . | . . . . . . . . . . . Garrisons Compromised . | . . . . . . . . . . . Overloaded Fab Kills . | . . . . . . . . . . . Hacking | -11 -10 -10 -9 -9 -9 -8 -8 -7 -7 -7 --------- Run | Scr Mat Min Mat Min Exi Min Mat Fac Gar Fac Machines Accessed 14 | . 5 1 1 . 2 . 3 2 . . Terminals 10 | . 4 1 1 . . . 3 1 . . Fabricators . | . . . . . . . . . . . Repair Stations . | . . . . . . . . . . . Recycling Units 1 | . 1 . . . . . . . . . Scanalyzers . | . . . . . . . . . . . Garrison Access 1 | . . . . . . . . 1 . . Total Hacks 37 | . 13 2 3 . 5 . 10 4 . . Successful 18 | . 4 1 1 . 5 . 6 1 . . Failed 19 | . 9 1 2 . . . 4 3 . . Catastrophic 4 | . 1 . 1 . . . . 2 . . Database Lockouts . | . . . . . . . . . . . Manual 14 | . 6 . . . 1 . 7 . . . Terminals 29 | . 12 2 3 . . . 10 2 . . Fabricators . | . . . . . . . . . . . Repair Stations . | . . . . . . . . . . . Recycling Units 1 | . 1 . . . . . . . . . Scanalyzers . | . . . . . . . . . . . Garrison Access 2 | . . . . . . . . 2 . . Terminal Hacks 14 | . 3 1 1 . 5 . 4 . . . Record 4 | . . . . . 4 . . . . . Robot Analysis 4 | . 1 . . . . . 3 . . . Prototype ID Bank 2 | . 1 . . . . . 1 . . . Branch Access Points 1 | . . . 1 . . . . . . . Zone Layout 2 | . 1 1 . . . . . . . . EX-Prototype ID Bank 1 | . . . . . 1 . . . . . Fabricator Hacks . | . . . . . . . . . . . Repair Station Hacks . | . . . . . . . . . . . Recycling Unit Hacks 1 | . 1 . . . . . . . . . Retrieve Components 1 | . 1 . . . . . . . . . Scanalyzer . | . . . . . . . . . . . Garrison Access Hacks 1 | . . . . . . . . 1 . . Unlock Access 1 | . . . . . . . . 1 . . Unauthorized Hacks 2 | . . . . . . . 2 . . . Terminals 2 | . . . . . . . 2 . . . Track 1 | . . . . . . . 1 . . . Botnet 1 | . . . . . . . 1 . . . Fabricators . | . . . . . . . . . . . Repair Stations . | . . . . . . . . . . . Recycling Units . | . . . . . . . . . . . Scanalyzers . | . . . . . . . . . . . Garrison Access . | . . . . . . . . . . . Data Cores Recovered . | . . . . . . . . . . . Used . | . . . . . . . . . . . Hacking Detections 11 | . 4 1 1 . . . 3 2 . . Full Trace Events 1 | . . . . . . . . 1 . . Feedback Events 1 | . . . . . . . . 1 . . Corruption 1 | . . . . . . . . 1 . . Feedback Blocked . | . . . . . . . . . . . Robot Schematics Acquired . | . . . . . . . . . . . Robots Built . | . . . . . . . . . . . Authchips . | . . . . . . . . . . . Time . | . . . . . . . . . . . Total Robot Build Rating . | . . . . . . . . . . . Part Schematics Acquired . | . . . . . . . . . . . Parts Built . | . . . . . . . . . . . Authchips . | . . . . . . . . . . . Time . | . . . . . . . . . . . Total Part Build Rating . | . . . . . . . . . . . Parts Repaired . | . . . . . . . . . . . Time . | . . . . . . . . . . . Parts Recycled . | . . . . . . . . . . . Recycled Matter . | . . . . . . . . . . . Retrieved Matter . | . . . . . . . . . . . Retrieved Components 2 | . 2 . . . . . . . . . Parts Scanalyzed . | . . . . . . . . . . . Part Schematics Acquired . | . . . . . . . . . . . Parts Damaged . | . . . . . . . . . . . Bothacking | -11 -10 -10 -9 -9 -9 -8 -8 -7 -7 -7 ------------ Run | Scr Mat Min Mat Min Exi Min Mat Fac Gar Fac Used RIF Installer 1 | . . . . . . . . . 1 . Robots Hacked . | . . . . . . . . . . . Non-combat . | . . . . . . . . . . . Combat . | . . . . . . . . . . . Robot Hacks Applied . | . . . . . . . . . . . Relay Couplers Released 17 | . . . . . . . . 4 13 . Machine Destruction 13 | . . . . . . . . . 13 . Programmers 4 | . . . . . . . . 4 . . Fabnet Peak Effective % . | . . . . . . . . . . . Robots Rewired . | . . . . . . . . . . . Allies Hacked . | . . . . . . . . . . . Hacks Repelled . | . . . . . . . . . . . Allies | -11 -10 -10 -9 -9 -9 -8 -8 -7 -7 -7 -------- Run | Scr Mat Min Mat Min Exi Min Mat Fac Gar Fac Total Allies 4 | . . . . 4 . . . . . . Largest Group 4 | . . . . 4 3 3 1 . . . Highest-Rated Group 71 | . . . . 71 40 40 16 . . . Highest-Rated Ally 31 | . . . . 31 16 16 16 . . . Total Orders . | . . . . . . . . . . . Ally Attacks 35 | . . . . 19 . 15 1 . . . Total Damage 391 | . . . . 237 . 141 13 . . . Kills 7 | . . . . 4 . 3 . . . . Allies Corrupted . | . . . . . . . . . . . Allies Melted . | . . . . . . . . . . . Intel | -11 -10 -10 -9 -9 -9 -8 -8 -7 -7 -7 ------- Run | Scr Mat Min Mat Min Exi Min Mat Fac Gar Fac Robot Analysis Total 4 | . 1 . . . . . 3 . . . Derelict Logs Recovered 1 | . . . . 1 . . . . . . Drone Launches . | . . . . . . . . . . . Drone Recoveries . | . . . . . . . . . . . Exploration | -11 -10 -10 -9 -9 -9 -8 -8 -7 -7 -7 ------------- Run | Scr Mat Min Mat Min Exi Min Mat Fac Gar Fac Turns Passed 8696 | . 1140 350 371 564 338 199 505 1468 3071 690 Spaces Moved 2954 | 1 549 163 185 358 231 111 219 544 565 28 Core 105 | . . . . . . . . . 77 28 Treads . | . . . . . . . . . . . Legs 13 | 1 12 . . . . . . . . . Wheels 2836 | . 537 163 185 358 231 111 219 544 488 . Hover . | . . . . . . . . . . . Flight . | . . . . . . . . . . . Fastest Speed 120 | 120 120 185 140 146 146 146 146 175 150 2400 Average Speed 247 | 120 166 185 153 146 146 146 163 183 480 2532 Slowest Speed 2650 | 120 235 185 305 146 146 146 180 190 2400 2650 Overloaded Moves . | . . . . . . . . . . . Propulsion Burnouts . | . . . . . . . . . . . Robots Hopped . | . . . . . . . . . . . Cave-ins Triggered 1 | . . . . . . . . . 1 . Exploration Rate (%) 36 | 2 80 38 18 53 62 35 17 14 82 1 Regions Visited 10 Branch Regions 4 Pre-discovered Areas 1 | . . . . . 1 . . . . . Known Exits Taken 2 | . . . 1 . . . . 1 . . Unknown Exits Taken 7 | 1 1 1 . 1 1 1 1 . . . Scrap Searched 4 | . . 1 . 2 . 1 . . . . Spaces Dug 16 | . . . . . . . . . 16 . Terrain Destroyed 133 | . . . . 11 . . . 1 121 . Melee . | . . . . . . . . . . . Projectile 1 | . . . . . . . . 1 . . AOE 132 | . . . . 11 . . . . 121 . Terrain Rammed . | . . . . . . . . . . . Walls Destroyed . | . . . . . . . . . . . Machines Disabled . | . . . . . . . . . . . Actions | -11 -10 -10 -9 -9 -9 -8 -8 -7 -7 -7 --------- Run | Scr Mat Min Mat Min Exi Min Mat Fac Gar Fac Total 3869 | . 672 191 228 381 232 123 311 907 792 32 Wait 360 | . 21 9 . 6 . . 44 266 14 . Move 2945 | . 548 162 184 357 230 110 218 544 564 28 Hop . | . . . . . . . . . . . Pick Up 65 | . 25 4 6 1 1 . 4 9 15 . Fast Attach 25 | . 1 . 4 . . . 4 8 6 2 Attach 27 | . 4 . 3 . . . 4 5 10 1 Detach 6 | . 2 . . . . . 2 . 2 . Swap 37 | . 4 2 3 4 . 2 3 8 11 . Drop 56 | . 6 3 7 3 1 . 5 18 12 1 Fire 258 | . 61 11 21 9 . 11 27 43 75 . Melee 8 | . . . . . . . . 6 2 . Ram 2 | . . . . 1 . . . . 1 . Kick . | . . . . . . . . . . . Crush . | . . . . . . . . . . . Escape Stasis 80 | . . . . . . . . . 80 . Rewire . | . . . . . . . . . . . Trap . | . . . . . . . . . . . Miscellaneous . | . . . . . . . . . . . Route ------- -11/Scrapyard -10/Materials (discovered 5 exits: *Mat x3 / *Min x2) -10/Mines -9/Materials (discovered 4 exits: *Min x2 / Sto x2) -9/Mines (discovered 2 exits: *Mat / *Exi) -9/Exiles -8/Mines -8/Materials -7/Factory (discovered 2 exits: Low / Gar) -7/Garrison (discovered 3 exits: [*Fac x3]) -7/Factory History --------- Turn | Location | Event 1 | -11/Scrapyard | Discovered new exit (range 0) 1 | -11/Scrapyard | Entered Materials 310 | -10/Materials | Build established: Hauler-Mutant 471 | -10/Materials | Discovered new exit (range 13) 695 | -10/Materials | Discovered new exit (range 13) 887 | -10/Materials | Discovered new exit (range 12) 1007 | -10/Materials | Discovered new exit (range 8) 1074 | -10/Materials | Discovered new exit (range 8) 1141 | -10/Materials | Entered Mines 1476 | -10/Mines | Discovered new exit (range 3) 1491 | -10/Mines | Entered Materials 1491 | -9/Materials | Evolved 2 slots: Propulsion x1, Weapon x1 1560 | -9/Materials | Identified exit to Mines 1560 | -9/Materials | Identified exit to Storage 1823 | -9/Materials | Build established: Hauler-Gunner 1862 | -9/Materials | Entered Mines 1980 | -9/Mines | Discovered new exit (range 6) 1989 | -9/Mines | Received a Mining Laser from a helpful Derelict 1993 | -9/Mines | Assisted by bots powering up and referring to "LRC-V3" 2414 | -9/Mines | Deemed a non-threat by the Exiles lab entrance 2414 | -9/Mines | Discovered new exit (range 5) 2426 | -9/Mines | Entered Exiles 2426 | -9/Exiles | Accompanied by 3 allies 2462 | -9/Exiles | Met 8R-AWN 2488 | -9/Exiles | Met EX-HEX 2526 | -9/Exiles | Met EX-BIN 2549 | -9/Exiles | Aligned with FarCom system 2551 | -9/Exiles | Given EX-Vault access code 2584 | -9/Exiles | Opened EX-Vault 2596 | -9/Exiles | Found Gui. Plasma Cannon 2628 | -9/Exiles | Warned to stay clear of 0b10 Research branches 2675 | -9/Exiles | Met EX-DEC 2694 | -9/Exiles | Learned location of Zion (-6) 2748 | -9/Exiles | Discovered new exit (range 10) 2764 | -9/Exiles | Left Exiles lab with Gui. Plasma Cannon 2764 | -9/Exiles | Entered Mines 2764 | -8/Mines | Accompanied by 3 allies 2945 | -8/Mines | Discovered new exit (range 13) 2963 | -8/Mines | Entered Materials 2963 | -8/Materials | Accompanied by 1 ally 2963 | -8/Materials | Evolved 2 slots: Propulsion x1, Utility x1 3064 | -8/Materials | Build established: Hauler-Skirmisher 3213 | -8/Materials | Lost 3 parts (1p1n1w) 3268 | -8/Materials | Discovered new exit (range 4) 3468 | -8/Materials | Entered Factory 3468 | -7/Factory | Evolved 2 slots: Utility x1, Weapon x1 3469 | -7/Factory | Identified exit to Lower Caves 4325 | -7/Factory | Cargo convoy interrupted 4687 | -7/Factory | Garrison activated, responded to threat 4936 | -7/Factory | Identified exit to Garrison 4936 | -7/Factory | Entered Garrison 5042 | -7/Garrison | Triggered checkpoint 5083 | -7/Garrison | Garrison Relay disabled 5288 | -7/Garrison | Lost 3 parts (1p1n1u) 5293 | -7/Garrison | Triggered checkpoint 5461 | -7/Garrison | Discovered new exit (range 12) 5532 | -7/Garrison | Triggered checkpoint 5597 | -7/Garrison | Garrison Relay disabled 5829 | -7/Garrison | Triggered checkpoint 5904 | -7/Garrison | Garrison Relay disabled 5952 | -7/Garrison | Crushed by falling debris 5952 | -7/Garrison | System corruption reached 10% 5983 | -7/Garrison | Lost 4 parts (1p1n2w) 6037 | -7/Garrison | Discovered new exit (range 9) 6126 | -7/Garrison | Triggered checkpoint 6161 | -7/Garrison | Core integrity fell below 50% 6197 | -7/Garrison | Lost 9 parts (1p4n1u3w) 6254 | -7/Garrison | Build established: Hauler-Mutant 7623 | -7/Garrison | Discovered new exit (range 8) 7911 | -7/Garrison | Installed Relay Interface Framework 8007 | -7/Garrison | Entered Factory 8220 | -7/Factory | Build established: Bothacker-Mutant 8407 | -7/Factory | First assault squad dispatched 8691 | -7/Factory | Core integrity fell below 20% 8697 | -7/Factory | Destroyed by G-50 Soldier with Heavy Laser Last Messages --------------- 08485_ System corrupted: Heat flow error (+101). 08502_ System corrupted: Heat flow error (+150). 08512_ ALERT: Cargo convoy en route, clear transfer corridor. 08520_ System corrupted: Matter fused (-10). 08572_ System corrupted: Energy discharge (-46). 08597_ System corrupted: Energy discharge (-52). 08624_ K-01 Serf collects debris. 08632_ System corrupted: Energy discharge (-60). 08647_ System corrupted: Substantial component data lost. 08661_ C-30 ARC bursts open, deploying its payload. 08661_ G-50 Soldier unfolds itself. 08661_ G-47 Trooper unfolds itself. 08661_ I-36 Angel unfolds itself. 08662_ K-01 Serf collects debris. 08669_ System corrupted: Mic. Nuclear Core rejected. 08675_ Imp. Cooling System destroyed. 08677_ Mni. Grenade Launcher destroyed. 08679_ Critical hit (Burn: +37). 08695_ Gauss Cannon destroyed. 08696_ System corrupted: Matter fused (-8). Map ----- +----------------------------------------------------+ | ?????????????????????????????????????????????????? | | ?????????????????????????????????????????????????? | | ?????????????????????????????????????????????????? | | ?????????????????????????????????????????????????? | | ?????????????????????????????????????????????????? | | ?????????????????????????????????????????????????? | | ?????????????????????????????????????????????????? | | ????????????????????????#??########?##???????????? | | ????????????????????????# #???????????? | | ????????????????????????# """" """" #???????????? | | ????????????????????????# """" """" #???????????? | | ?????????????????? ??# """" """" #???????????? | | ??????????????????# ??# """" """" #???????????? | | ??????????????????# ??# #???????????? | | ??????????????????# ?# !! #???????????? | | ??????????????????# ?# !! #???????????? | | ??????????????????# ?+ !! #???????????? | | ??????????????????# # ! #???????????? | | ??????????????????# # #???????????? | | ??????????????????# # #???????????? | | ??????????????????# #####+###########????????? | | ??????????????????# #????????? | | ??????????????????# #????????? | | ??????????????????# g #????????? | | ?????????????????##i g * #????????? | | ?????????? r % g g @ #????????? | | ?????????????#########/##################????????? | | ???????????????????? ???????????????????????????? | | ?????????????????? ????????????????????????????? | | ?????????????????# ??????????????????????????????? | | ?????????????????#???????????????????????????????? | | ?????????????????????????????????????????????????? | | ?????????????????????????????????????????????????? | | ?????????????????????????????????????????????????? | | ?????????????????????????????????????????????????? | | ?????????????????????????????????????????????????? | | ?????????????????????????????????????????????????? | | ?????????????????????????????????????????????????? | | ?????????????????????????????????????????????????? | | ?????????????????????????????????????????????????? | | ?????????????????????????????????????????????????? | | ?????????????????????????????????????????????????? | | ?????????????????????????????????????????????????? | | ?????????????????????????????????????????????????? | | ?????????????????????????????????????????????????? | | ?????????????????????????????????????????????????? | | ?????????????????????????????????????????????????? | | ?????????????????????????????????????????????????? | | ?????????????????????????????????????????????????? | | ?????????????????????????????????????????????????? | +----------------------------------------------------+ Best States ------------- Heat Dissipation 75 Energy Generation 18 Energy Capacity 280 Matter Stores 300 Matter Capacity 400 Sight Range 16 Terrain Scan Density 10 Armor Coverage 225 Evasion (%) 50 Recoil Reduction 2 Item Schematics ----------------- None Robot Schematics ------------------ None Fabricated ------------ Nothing Alien Tech Used ----------------- None Achievements -------------- None Challenges ------------ None Game ------ Seed GodLongswordDetonator Manual? 0 Play Time 00:42:17 Cumulative 167.9 hours Start 2021.12.06 @ 15:05:07 End 2021.12.06 @ 16:01:48 Sessions 1 Manual Loads 0 Difficulty Rogue Special Mode None Game No. 230 Rogue 230 Adventurer 0 Explorer 0 Win Type - Total 2 Types 2/0/0/0/0/0/0/0/0 Lore% 58 Gallery% 71 Achievement% 51 Wizard Run 0 Options --------- ASCII 0 Keyboard 1 Movement Vi Keybinds 0 Fullscreen 1 Font 16/Cog Map View 76x50 Tactical HUD 1 Map Filters NONE Filters NONE Steam 1 RUN: 0bab0f73-efd7-4de5-8e0b-063fee33b97a